[Event "December 5 Early 2023"]
[Site "https://www.chess.com"]
[Date "2023.12.05"]
[Round "4"]
[White "Naroditsky, Daniel"]
[Black "Baskakov, Egor"]
[Result "1-0"]
[Board "2"]
[TimeControl "180+1"]
[WhiteFideId "2026961"]
[BlackFideId "24197866"]
[WhiteElo "3173"]
[BlackElo "2905"]
[WhiteTeam "USA"]
[BlackTeam "RUS"]
[WhiteClock "0:00:03"]
[BlackClock "0:00:04"]

1. d4 {[%clk 0:03:00]}  Nf6 {[%clk 0:02:57]} 2. Nc3 {[%clk 0:03:01]}  d5 {[%clk 0:02:56]} 3. Bf4 {[%clk 0:03:01]}  Bf5 {[%clk 0:02:53]} 4. e3 {[%clk 0:03:00]}  e6 {[%clk 0:02:53]} 5. Nf3 {[%clk 0:03:01]}  Bd6 {[%clk 0:02:52]} 6. Bxd6 {[%clk 0:03:00]}  cxd6 {[%clk 0:02:52]} 7. Bd3 {[%clk 0:03:01]}  Ne4 {[%clk 0:02:50]} 8. Ne2 {[%clk 0:02:47]}  Nc6 {[%clk 0:02:47]} 9. O-O {[%clk 0:02:47]}  O-O {[%clk 0:02:46]} 10. c3 {[%clk 0:02:36]}  h6 {[%clk 0:02:41]} 11. h3 {[%clk 0:02:36]}  Rc8 {[%clk 0:02:38]} 12. Ng3 {[%clk 0:02:30]}  Nxg3 {[%clk 0:02:37]} 13. fxg3 {[%clk 0:02:30]}  Be4 {[%clk 0:02:35]} 14. Qe2 {[%clk 0:02:17]}  f5 {[%clk 0:02:35]} 15. Rac1 {[%clk 0:02:14]}  a6 {[%clk 0:02:31]} 16. Kh2 {[%clk 0:02:10]}  b5 {[%clk 0:02:30]} 17. Nd2 {[%clk 0:02:09]}  Qg5 {[%clk 0:02:23]} 18. a4 {[%clk 0:01:54]}  bxa4 {[%clk 0:02:20]} 19. Nxe4 {[%clk 0:01:50]}  dxe4 {[%clk 0:02:07]} 20. Bxa6 {[%clk 0:01:49]}  Rc7 {[%clk 0:02:07]} 21. Bb5 {[%clk 0:01:43]}  Ne7 {[%clk 0:01:51]} 22. Bxa4 {[%clk 0:01:34]}  Nd5 {[%clk 0:01:47]} 23. Rfe1 {[%clk 0:01:34]}  Rb8 {[%clk 0:01:46]} 24. c4 {[%clk 0:01:08]}  Nb4 {[%clk 0:01:45]} 25. Bc2 {[%clk 0:01:08]}  Ra7 {[%clk 0:01:14]} 26. Bb1 {[%clk 0:01:05]}  g6 {[%clk 0:00:46]} 27. c5 {[%clk 0:01:04]}  d5 {[%clk 0:00:46]} 28. Rc3 {[%clk 0:00:52]}  Rab7 {[%clk 0:00:37]} 29. c6 {[%clk 0:00:44]}  Rc7 {[%clk 0:00:37]} 30. Rec1 {[%clk 0:00:45]}  Qe7 {[%clk 0:00:33]} 31. Qd1 {[%clk 0:00:33]}  Qd6 {[%clk 0:00:31]} 32. Qa4 {[%clk 0:00:33]}  Rbc8 {[%clk 0:00:19]} 33. Rc5 {[%clk 0:00:33]}  Nxc6 {[%clk 0:00:18]} 34. Qa6 {[%clk 0:00:33]}  Kf8 {[%clk 0:00:17]} 35. b4 {[%clk 0:00:29]}  Ke7 {[%clk 0:00:17]} 36. b5 {[%clk 0:00:29]}  Nd8 {[%clk 0:00:18]} 37. Qa3 {[%clk 0:00:16]}  Kf6 {[%clk 0:00:13]} 38. Qc3 {[%clk 0:00:05]}  Rxc5 {[%clk 0:00:06]} 39. dxc5+ {[%clk 0:00:06]}  Qe5 {[%clk 0:00:06]} 40. Qb4 {[%clk 0:00:03]}  g5 {[%clk 0:00:06]} 41. c6 {[%clk 0:00:04]}  f4 {[%clk 0:00:07]} 42. Qf8+ {[%clk 0:00:04]}  Nf7 {[%clk 0:00:06]} 43. Qxc8 {[%clk 0:00:03]}  fxe3 {[%clk 0:00:05]} 44. Rf1+ {[%clk 0:00:03]}  Kg6 {[%clk 0:00:04]} 45. Qg8+ {[%clk 0:00:03]} 1-0

[Event "December 5 Early 2023"]
[Site "https://www.chess.com"]
[Date "2023.12.05"]
[Round "4"]
[White "Harutjunyan, Gevorg"]
[Black "Firouzja, Alireza"]
[Result "0-1"]
[Board "3"]
[TimeControl "180+1"]
[WhiteFideId "13300873"]
[BlackFideId "12573981"]
[WhiteElo "2890"]
[BlackElo "3171"]
[WhiteTeam "ARM"]
[BlackTeam "FRA"]
[WhiteClock "0:00:00"]
[BlackClock "0:00:09"]

1. e4 {[%clk 0:03:00]}  e6 {[%clk 0:02:53]} 2. d4 {[%clk 0:03:00]}  d5 {[%clk 0:02:54]} 3. Nc3 {[%clk 0:03:01]}  Nf6 {[%clk 0:02:54]} 4. Bg5 {[%clk 0:03:00]}  dxe4 {[%clk 0:02:53]} 5. Nxe4 {[%clk 0:02:59]}  Be7 {[%clk 0:02:54]} 6. Bxf6 {[%clk 0:02:58]}  gxf6 {[%clk 0:02:53]} 7. Nf3 {[%clk 0:02:58]}  a6 {[%clk 0:02:48]} 8. Qe2 {[%clk 0:02:51]}  f5 {[%clk 0:02:20]} 9. Nc3 {[%clk 0:02:43]}  c5 {[%clk 0:02:05]} 10. d5 {[%clk 0:02:32]}  Bf6 {[%clk 0:01:52]} 11. O-O-O {[%clk 0:02:32]}  Qb6 {[%clk 0:01:45]} 12. Ne5 {[%clk 0:02:25]}  O-O {[%clk 0:01:38]} 13. h4 {[%clk 0:02:04]}  Nd7 {[%clk 0:01:31]} 14. Nc4 {[%clk 0:01:58]}  Qd8 {[%clk 0:01:17]} 15. dxe6 {[%clk 0:01:58]}  fxe6 {[%clk 0:01:17]} 16. Qxe6+ {[%clk 0:01:58]}  Kh8 {[%clk 0:01:18]} 17. Nd6 {[%clk 0:01:28]}  Bd4 {[%clk 0:01:05]} 18. Nxc8 {[%clk 0:00:59]}  Rxc8 {[%clk 0:01:02]} 19. Rh3 {[%clk 0:00:44]}  Ne5 {[%clk 0:00:51]} 20. Qd5 {[%clk 0:00:35]}  Ng4 {[%clk 0:00:46]} 21. Qxd8 {[%clk 0:00:22]}  Rcxd8 {[%clk 0:00:45]} 22. Rf3 {[%clk 0:00:18]}  Nxf2 {[%clk 0:00:44]} 23. Re1 {[%clk 0:00:18]}  f4 {[%clk 0:00:43]} 24. Bd3 {[%clk 0:00:13]}  Be3+ {[%clk 0:00:41]} 25. Kb1 {[%clk 0:00:13]}  Rg8 {[%clk 0:00:33]} 26. g3 {[%clk 0:00:12]}  Bd2 {[%clk 0:00:24]} 27. Rg1 {[%clk 0:00:13]}  fxg3 {[%clk 0:00:15]} 28. Rfxg3 {[%clk 0:00:11]}  Rxg3 {[%clk 0:00:12]} 29. Rxg3 {[%clk 0:00:12]}  b5 {[%clk 0:00:10]} 30. a3 {[%clk 0:00:10]}  c4 {[%clk 0:00:10]} 31. Bf5 {[%clk 0:00:09]}  Rf8 {[%clk 0:00:10]} 32. Rf3 {[%clk 0:00:09]}  Bxc3 {[%clk 0:00:07]} 33. bxc3 {[%clk 0:00:08]}  Nd1 {[%clk 0:00:04]} 34. Kc1 {[%clk 0:00:07]}  Nxc3 {[%clk 0:00:05]} 35. Rxc3 {[%clk 0:00:07]}  Rxf5 {[%clk 0:00:05]} 36. a4 {[%clk 0:00:08]}  Rf4 {[%clk 0:00:06]} 37. axb5 {[%clk 0:00:09]}  axb5 {[%clk 0:00:06]} 38. Rh3 {[%clk 0:00:09]}  Kg7 {[%clk 0:00:06]} 39. Kd2 {[%clk 0:00:10]}  b4 {[%clk 0:00:07]} 40. Ke3 {[%clk 0:00:10]}  Rg4 {[%clk 0:00:07]} 41. Kf3 {[%clk 0:00:10]}  h5 {[%clk 0:00:07]} 42. Rh1 {[%clk 0:00:10]}  Kf6 {[%clk 0:00:06]} 43. Rb1 {[%clk 0:00:10]}  c3 {[%clk 0:00:07]} 44. Ke3 {[%clk 0:00:08]}  Rxh4 {[%clk 0:00:06]} 45. Rf1+ {[%clk 0:00:09]}  Kg5 {[%clk 0:00:07]} 46. Rf8 {[%clk 0:00:10]}  Rg4 {[%clk 0:00:07]} 47. Rg8+ {[%clk 0:00:10]}  Kh4 {[%clk 0:00:07]} 48. Rh8 {[%clk 0:00:10]}  Rg2 {[%clk 0:00:07]} 49. Kf3 {[%clk 0:00:11]}  Rxc2 {[%clk 0:00:07]} 50. Rb8 {[%clk 0:00:10]}  Rb2 {[%clk 0:00:07]} 51. Rc8 {[%clk 0:00:11]}  Kh3 {[%clk 0:00:07]} 52. Rc5 {[%clk 0:00:11]}  h4 {[%clk 0:00:08]} 53. Rc4 {[%clk 0:00:12]}  c2 {[%clk 0:00:08]} 54. Ke3 {[%clk 0:00:12]}  Rb3+ {[%clk 0:00:08]} 55. Kd2 {[%clk 0:00:00]}  Rc3 {[%clk 0:00:09]} 0-1

[Event "December 5 Early 2023"]
[Site "https://www.chess.com"]
[Date "2023.12.05"]
[Round "4"]
[White "Xu, Yi"]
[Black "Caruana, Fabiano"]
[Result "0-1"]
[Board "5"]
[TimeControl "180+1"]
[WhiteFideId "8605564"]
[BlackFideId "2020009"]
[WhiteElo "2861"]
[BlackElo "3078"]
[WhiteTeam "CHN"]
[BlackTeam "USA"]
[WhiteClock "0:00:02"]
[BlackClock "0:00:11"]

1. e4 {[%clk 0:03:00]}  c5 {[%clk 0:02:59]} 2. Nf3 {[%clk 0:03:01]}  d6 {[%clk 0:03:00]} 3. d4 {[%clk 0:02:59]}  cxd4 {[%clk 0:03:01]} 4. Nxd4 {[%clk 0:02:59]}  Nf6 {[%clk 0:03:01]} 5. Nc3 {[%clk 0:03:00]}  a6 {[%clk 0:03:02]} 6. Be3 {[%clk 0:02:59]}  e5 {[%clk 0:03:01]} 7. Nb3 {[%clk 0:02:59]}  Be6 {[%clk 0:03:01]} 8. Qd2 {[%clk 0:02:53]}  Be7 {[%clk 0:03:00]} 9. h3 {[%clk 0:02:53]}  Nbd7 {[%clk 0:02:57]} 10. O-O-O {[%clk 0:02:53]}  b5 {[%clk 0:02:57]} 11. g4 {[%clk 0:02:47]}  Nb6 {[%clk 0:02:49]} 12. g5 {[%clk 0:02:34]}  Nfd7 {[%clk 0:02:47]} 13. Kb1 {[%clk 0:02:27]}  O-O {[%clk 0:02:32]} 14. h4 {[%clk 0:02:25]}  Nc4 {[%clk 0:02:10]} 15. Bxc4 {[%clk 0:02:24]}  bxc4 {[%clk 0:02:11]} 16. Nc1 {[%clk 0:02:24]}  Rb8 {[%clk 0:02:10]} 17. Nd5 {[%clk 0:01:50]}  Bxd5 {[%clk 0:01:34]} 18. exd5 {[%clk 0:01:51]}  f5 {[%clk 0:01:24]} 19. f4 {[%clk 0:01:41]}  exf4 {[%clk 0:00:58]} 20. Bd4 {[%clk 0:01:36]}  Nc5 {[%clk 0:00:51]} 21. Bxc5 {[%clk 0:01:10]}  dxc5 {[%clk 0:00:52]} 22. d6 {[%clk 0:00:47]}  Qb6 {[%clk 0:00:52]} 23. b3 {[%clk 0:00:45]}  cxb3 {[%clk 0:00:47]} 24. axb3 {[%clk 0:00:35]}  Rfd8 {[%clk 0:00:42]} 25. Qd5+ {[%clk 0:00:34]}  Kh8 {[%clk 0:00:42]} 26. d7 {[%clk 0:00:20]}  c4 {[%clk 0:00:26]} 27. Qxc4 {[%clk 0:00:17]}  Qb5 {[%clk 0:00:15]} 28. Qxb5 {[%clk 0:00:10]}  axb5 {[%clk 0:00:14]} 29. Rhe1 {[%clk 0:00:09]}  Bb4 {[%clk 0:00:13]} 30. Re5 {[%clk 0:00:08]}  g6 {[%clk 0:00:08]} 31. Na2 {[%clk 0:00:06]}  Bf8 {[%clk 0:00:08]} 32. Red5 {[%clk 0:00:04]}  Kg8 {[%clk 0:00:07]} 33. Rf1 {[%clk 0:00:03]}  Kf7 {[%clk 0:00:07]} 34. Rxf4 {[%clk 0:00:03]}  Ke6 {[%clk 0:00:07]} 35. Rfd4 {[%clk 0:00:04]}  Rb7 {[%clk 0:00:07]} 36. Kc1 {[%clk 0:00:03]}  Rbxd7 {[%clk 0:00:07]} 37. Rxd7 {[%clk 0:00:03]}  Rxd7 {[%clk 0:00:08]} 38. Rxd7 {[%clk 0:00:03]}  Kxd7 {[%clk 0:00:09]} 39. Nc3 {[%clk 0:00:03]}  Kc6 {[%clk 0:00:09]} 40. Kd1 {[%clk 0:00:02]}  Bd6 {[%clk 0:00:07]} 41. Ne2 {[%clk 0:00:03]}  Kd5 {[%clk 0:00:08]} 42. Kd2 {[%clk 0:00:03]}  b4 {[%clk 0:00:07]} 43. c3 {[%clk 0:00:04]}  Ke4 {[%clk 0:00:08]} 44. cxb4 {[%clk 0:00:02]}  Bxb4+ {[%clk 0:00:09]} 45. Kd1 {[%clk 0:00:02]}  f4 {[%clk 0:00:08]} 46. Ng1 {[%clk 0:00:02]}  f3 {[%clk 0:00:09]} 47. Nh3 {[%clk 0:00:02]}  Ke3 {[%clk 0:00:09]} 48. h5 {[%clk 0:00:02]}  gxh5 {[%clk 0:00:09]} 49. Kc2 {[%clk 0:00:02]}  f2 {[%clk 0:00:09]} 50. Nxf2 {[%clk 0:00:02]}  Kxf2 {[%clk 0:00:10]} 51. Kd3 {[%clk 0:00:02]}  h4 {[%clk 0:00:10]} 52. Ke4 {[%clk 0:00:03]}  h3 {[%clk 0:00:11]} 53. g6 {[%clk 0:00:02]}  hxg6 {[%clk 0:00:11]} 0-1

[Event "December 5 Early 2023"]
[Site "https://www.chess.com"]
[Date "2023.12.05"]
[Round "4"]
[White "Pranav, V"]
[Black "Kuzubov, Yuriy"]
[Result "0-1"]
[Board "6"]
[TimeControl "180+1"]
[WhiteFideId "25060783"]
[BlackFideId "14112906"]
[WhiteElo "3077"]
[BlackElo "2851"]
[WhiteTeam "IND"]
[BlackTeam "UKR"]
[WhiteClock "0:00:01"]
[BlackClock "0:00:05"]

1. e4 {[%clk 0:03:00]}  e5 {[%clk 0:02:59]} 2. Nf3 {[%clk 0:03:01]}  Nf6 {[%clk 0:03:00]} 3. Nxe5 {[%clk 0:02:58]}  d6 {[%clk 0:03:00]} 4. Nf3 {[%clk 0:02:59]}  Nxe4 {[%clk 0:03:00]} 5. Nc3 {[%clk 0:03:00]}  Nf6 {[%clk 0:02:55]} 6. d4 {[%clk 0:03:00]}  g6 {[%clk 0:02:55]} 7. Bd3 {[%clk 0:03:00]}  Bg7 {[%clk 0:02:56]} 8. O-O {[%clk 0:03:01]}  O-O {[%clk 0:02:56]} 9. h3 {[%clk 0:03:02]}  Re8 {[%clk 0:02:51]} 10. Bf4 {[%clk 0:02:53]}  Nc6 {[%clk 0:02:49]} 11. Qd2 {[%clk 0:02:51]}  Nb4 {[%clk 0:02:47]} 12. Bc4 {[%clk 0:02:33]}  d5 {[%clk 0:02:29]} 13. Bb3 {[%clk 0:02:31]}  c6 {[%clk 0:02:28]} 14. Rfe1 {[%clk 0:02:24]}  Bf5 {[%clk 0:02:18]} 15. g4 {[%clk 0:01:57]}  Be6 {[%clk 0:02:12]} 16. Bh6 {[%clk 0:01:47]}  Nd7 {[%clk 0:02:01]} 17. Bxg7 {[%clk 0:01:45]}  Kxg7 {[%clk 0:02:01]} 18. Ne2 {[%clk 0:01:43]}  Na6 {[%clk 0:01:58]} 19. Nf4 {[%clk 0:01:36]}  Nc7 {[%clk 0:01:55]} 20. c3 {[%clk 0:01:34]}  Nb5 {[%clk 0:01:36]} 21. Bc2 {[%clk 0:01:21]}  Nd6 {[%clk 0:01:21]} 22. Ng5 {[%clk 0:01:20]}  Nf8 {[%clk 0:01:21]} 23. Ngxe6+ {[%clk 0:01:05]}  Nxe6 {[%clk 0:01:20]} 24. Nxe6+ {[%clk 0:01:06]}  fxe6 {[%clk 0:01:12]} 25. Bd3 {[%clk 0:01:03]}  Qf6 {[%clk 0:01:11]} 26. Qe3 {[%clk 0:00:57]}  g5 {[%clk 0:01:06]} 27. Qg3 {[%clk 0:00:34]}  Rad8 {[%clk 0:00:54]} 28. Re2 {[%clk 0:00:28]}  Nf7 {[%clk 0:00:41]} 29. Rae1 {[%clk 0:00:27]}  Re7 {[%clk 0:00:35]} 30. Re3 {[%clk 0:00:27]}  Qf4 {[%clk 0:00:18]} 31. Qg2 {[%clk 0:00:26]}  Rde8 {[%clk 0:00:16]} 32. Rf3 {[%clk 0:00:20]}  Qd6 {[%clk 0:00:16]} 33. h4 {[%clk 0:00:14]}  e5 {[%clk 0:00:15]} 34. Rfe3 {[%clk 0:00:07]}  e4 {[%clk 0:00:14]} 35. Be2 {[%clk 0:00:06]}  gxh4 {[%clk 0:00:14]} 36. Rh3 {[%clk 0:00:06]}  Ng5 {[%clk 0:00:14]} 37. Rxh4 {[%clk 0:00:06]}  Rf8 {[%clk 0:00:13]} 38. Qh2 {[%clk 0:00:06]}  Qxh2+ {[%clk 0:00:13]} 39. Rxh2 {[%clk 0:00:06]}  Ref7 {[%clk 0:00:12]} 40. c4 {[%clk 0:00:05]}  dxc4 {[%clk 0:00:12]} 41. Rh5 {[%clk 0:00:03]}  h6 {[%clk 0:00:12]} 42. Rf1 {[%clk 0:00:03]}  b5 {[%clk 0:00:11]} 43. Kg2 {[%clk 0:00:03]}  Ne6 {[%clk 0:00:09]} 44. Kg3 {[%clk 0:00:02]}  Nf4 {[%clk 0:00:08]} 45. Bd1 {[%clk 0:00:02]}  Nxh5+ {[%clk 0:00:09]} 46. gxh5 {[%clk 0:00:03]}  Rf5 {[%clk 0:00:09]} 47. Bg4 {[%clk 0:00:03]}  Rg5 {[%clk 0:00:08]} 48. Re1 {[%clk 0:00:04]}  Re8 {[%clk 0:00:08]} 49. f4 {[%clk 0:00:04]}  Rd5 {[%clk 0:00:07]} 50. Rd1 {[%clk 0:00:04]}  Red8 {[%clk 0:00:07]} 51. Be6 {[%clk 0:00:02]}  Rxd4 {[%clk 0:00:07]} 52. Rg1 {[%clk 0:00:02]}  Kf6 {[%clk 0:00:07]} 53. f5 {[%clk 0:00:03]}  Ke5 {[%clk 0:00:05]} 54. Kh3 {[%clk 0:00:01]}  Rd3+ {[%clk 0:00:05]} 55. Kh4 {[%clk 0:00:02]}  e3 {[%clk 0:00:06]} 56. Bf7 {[%clk 0:00:01]}  e2 {[%clk 0:00:04]} 57. Re1 {[%clk 0:00:01]}  R8d4# {[%clk 0:00:05]} 0-1

[Event "December 5 Early 2023"]
[Site "https://www.chess.com"]
[Date "2023.12.05"]
[Round "4"]
[White "Aronian, Levon"]
[Black "Movsesian, Sergei"]
[Result "1-0"]
[Board "7"]
[TimeControl "180+1"]
[WhiteFideId "13300474"]
[BlackFideId "310204"]
[WhiteElo "3060"]
[BlackElo "2851"]
[WhiteTeam "USA"]
[BlackTeam "ARM"]
[WhiteClock "0:00:12"]
[BlackClock "0:00:00"]

1. e4 {[%clk 0:03:00]}  c5 {[%clk 0:02:58]} 2. Nf3 {[%clk 0:03:00]}  e6 {[%clk 0:02:58]} 3. c3 {[%clk 0:02:59]}  Nf6 {[%clk 0:02:57]} 4. Bd3 {[%clk 0:02:57]}  Nc6 {[%clk 0:02:50]} 5. Bc2 {[%clk 0:02:57]}  d5 {[%clk 0:02:49]} 6. e5 {[%clk 0:02:57]}  Nd7 {[%clk 0:02:49]} 7. d4 {[%clk 0:02:57]}  b6 {[%clk 0:02:47]} 8. a3 {[%clk 0:02:42]}  Ba6 {[%clk 0:02:45]} 9. b4 {[%clk 0:02:40]}  cxd4 {[%clk 0:02:43]} 10. cxd4 {[%clk 0:02:40]}  Rc8 {[%clk 0:02:39]} 11. Nbd2 {[%clk 0:02:39]}  Be7 {[%clk 0:02:28]} 12. Ba4 {[%clk 0:02:27]}  Bd3 {[%clk 0:02:03]} 13. Qb3 {[%clk 0:02:27]}  Bg6 {[%clk 0:01:58]} 14. Bb5 {[%clk 0:02:18]}  O-O {[%clk 0:01:56]} 15. O-O {[%clk 0:02:17]}  f6 {[%clk 0:01:43]} 16. Bb2 {[%clk 0:02:13]}  fxe5 {[%clk 0:01:42]} 17. dxe5 {[%clk 0:02:13]}  Bg5 {[%clk 0:01:24]} 18. Bxc6 {[%clk 0:01:55]}  Rxc6 {[%clk 0:01:18]} 19. Nd4 {[%clk 0:01:53]}  Nxe5 {[%clk 0:01:10]} 20. Rae1 {[%clk 0:01:47]}  Bxd2 {[%clk 0:00:44]} 21. Rxe5 {[%clk 0:01:46]}  Qd7 {[%clk 0:00:40]} 22. Nxe6 {[%clk 0:01:10]}  Rxe6 {[%clk 0:00:18]} 23. Rxd5 {[%clk 0:01:10]}  Qf7 {[%clk 0:00:14]} 24. Rxd2 {[%clk 0:01:10]}  h6 {[%clk 0:00:13]} 25. Qg3 {[%clk 0:01:08]}  Be4 {[%clk 0:00:12]} 26. f3 {[%clk 0:01:04]}  Rg6 {[%clk 0:00:11]} 27. Qh3 {[%clk 0:00:56]}  Bc6 {[%clk 0:00:08]} 28. Kh1 {[%clk 0:00:52]}  Kh7 {[%clk 0:00:08]} 29. Qh4 {[%clk 0:00:49]}  Qf5 {[%clk 0:00:07]} 30. Qd4 {[%clk 0:00:41]}  Rf7 {[%clk 0:00:07]} 31. Qc3 {[%clk 0:00:40]}  Bb5 {[%clk 0:00:06]} 32. Re1 {[%clk 0:00:39]}  Rc6 {[%clk 0:00:05]} 33. Qe3 {[%clk 0:00:36]}  Rg6 {[%clk 0:00:03]} 34. Qf2 {[%clk 0:00:31]}  Qg5 {[%clk 0:00:03]} 35. Re5 {[%clk 0:00:28]}  Rf5 {[%clk 0:00:04]} 36. Rxf5 {[%clk 0:00:27]}  Qxf5 {[%clk 0:00:04]} 37. h3 {[%clk 0:00:27]}  Bc6 {[%clk 0:00:04]} 38. Qe3 {[%clk 0:00:23]}  Qh5 {[%clk 0:00:02]} 39. Qd3 {[%clk 0:00:20]}  Qg5 {[%clk 0:00:01]} 40. Rc2 {[%clk 0:00:14]}  Bb5 {[%clk 0:00:00]} 41. Qe4 {[%clk 0:00:12]} 1-0

[Event "December 5 Early 2023"]
[Site "https://www.chess.com"]
[Date "2023.12.05"]
[Round "4"]
[White "Finek, Vaclav"]
[Black "Le, Tuan Minh"]
[Result "0-1"]
[Board "8"]
[TimeControl "180+1"]
[WhiteFideId "23718293"]
[BlackFideId "12401153"]
[WhiteElo "2842"]
[BlackElo "3057"]
[WhiteTeam "CZE"]
[BlackTeam "VIE"]
[WhiteClock "0:00:00"]
[BlackClock "0:00:15"]

1. d4 {[%clk 0:03:00]}  d5 {[%clk 0:02:59]} 2. c4 {[%clk 0:02:59]}  c6 {[%clk 0:02:59]} 3. Nf3 {[%clk 0:02:59]}  Nf6 {[%clk 0:02:59]} 4. Qc2 {[%clk 0:02:59]}  dxc4 {[%clk 0:02:59]} 5. Qxc4 {[%clk 0:03:00]}  Bg4 {[%clk 0:02:59]} 6. Nbd2 {[%clk 0:02:59]}  Nbd7 {[%clk 0:02:59]} 7. g3 {[%clk 0:02:59]}  e6 {[%clk 0:03:00]} 8. Bg2 {[%clk 0:03:00]}  Be7 {[%clk 0:03:00]} 9. O-O {[%clk 0:03:00]}  O-O {[%clk 0:03:01]} 10. Qb3 {[%clk 0:02:59]}  Qb6 {[%clk 0:03:01]} 11. Nc4 {[%clk 0:02:58]}  Qa6 {[%clk 0:03:01]} 12. Bd2 {[%clk 0:02:58]}  Rfd8 {[%clk 0:02:47]} 13. Rfc1 {[%clk 0:02:55]}  Nb6 {[%clk 0:02:46]} 14. e3 {[%clk 0:02:52]}  Nxc4 {[%clk 0:02:34]} 15. Rxc4 {[%clk 0:02:50]}  Qb6 {[%clk 0:02:33]} 16. Ne5 {[%clk 0:02:42]}  Bf5 {[%clk 0:02:31]} 17. Bb4 {[%clk 0:02:34]}  Re8 {[%clk 0:01:55]} 18. Bxe7 {[%clk 0:02:12]}  Qxb3 {[%clk 0:01:49]} 19. axb3 {[%clk 0:02:13]}  Rxe7 {[%clk 0:01:50]} 20. Rca4 {[%clk 0:02:08]}  a6 {[%clk 0:01:48]} 21. Rc1 {[%clk 0:02:04]}  Ne8 {[%clk 0:01:27]} 22. b4 {[%clk 0:01:47]}  Nd6 {[%clk 0:01:24]} 23. Ra3 {[%clk 0:01:40]}  f6 {[%clk 0:01:10]} 24. Nc4 {[%clk 0:01:38]}  Nxc4 {[%clk 0:01:10]} 25. Rxc4 {[%clk 0:01:38]}  Rd8 {[%clk 0:01:10]} 26. Ra5 {[%clk 0:01:36]}  e5 {[%clk 0:01:08]} 27. d5 {[%clk 0:01:27]}  Kf8 {[%clk 0:00:49]} 28. e4 {[%clk 0:01:11]}  cxd5 {[%clk 0:00:41]} 29. Rxd5 {[%clk 0:01:06]}  Rxd5 {[%clk 0:00:41]} 30. exd5 {[%clk 0:01:07]}  Rd7 {[%clk 0:00:39]} 31. Rc8+ {[%clk 0:01:01]}  Ke7 {[%clk 0:00:38]} 32. Rb8 {[%clk 0:00:56]}  Kd6 {[%clk 0:00:38]} 33. f4 {[%clk 0:00:51]}  exf4 {[%clk 0:00:25]} 34. gxf4 {[%clk 0:00:52]}  Bg6 {[%clk 0:00:26]} 35. Kf2 {[%clk 0:00:45]}  Bf7 {[%clk 0:00:26]} 36. Bh3 {[%clk 0:00:45]}  Rc7 {[%clk 0:00:17]} 37. Rd8+ {[%clk 0:00:38]}  Ke7 {[%clk 0:00:17]} 38. Rh8 {[%clk 0:00:19]}  Bxd5 {[%clk 0:00:17]} 39. Rxh7 {[%clk 0:00:19]}  Kf7 {[%clk 0:00:18]} 40. Rh5 {[%clk 0:00:17]}  Rc2+ {[%clk 0:00:17]} 41. Kg3 {[%clk 0:00:10]}  Bc6 {[%clk 0:00:17]} 42. Rc5 {[%clk 0:00:06]}  Rxb2 {[%clk 0:00:16]} 43. Bf1 {[%clk 0:00:02]}  Rxb4 {[%clk 0:00:16]} 44. f5 {[%clk 0:00:03]}  Ke7 {[%clk 0:00:15]} 45. Rc3 {[%clk 0:00:03]}  a5 {[%clk 0:00:15]} 46. Rc5 {[%clk 0:00:03]}  a4 {[%clk 0:00:15]} 47. Ra5 {[%clk 0:00:03]}  Kd6 {[%clk 0:00:15]} 48. h4 {[%clk 0:00:02]}  b6 {[%clk 0:00:15]} 49. Ra7 {[%clk 0:00:02]}  Rb3+ {[%clk 0:00:13]} 50. Kg4 {[%clk 0:00:02]}  a3 {[%clk 0:00:14]} 51. Rxg7 {[%clk 0:00:02]}  a2 {[%clk 0:00:14]} 52. Ra7 {[%clk 0:00:03]}  Rb4+ {[%clk 0:00:14]} 53. Kh5 {[%clk 0:00:00]}  Ra4 {[%clk 0:00:15]} 0-1

[Event "December 5 Early 2023"]
[Site "https://www.chess.com"]
[Date "2023.12.05"]
[Round "4"]
[White "Duda, Jan-Krzysztof"]
[Black "Vakhlamov, Igor L."]
[Result "1-0"]
[Board "10"]
[TimeControl "180+1"]
[WhiteFideId "1170546"]
[BlackFideId "24126748"]
[WhiteElo "3051"]
[BlackElo "2836"]
[WhiteTeam "POL"]
[BlackTeam "RUS"]
[WhiteClock "0:00:39"]
[BlackClock "0:00:14"]

1. e4 {[%clk 0:03:00]}  c5 {[%clk 0:02:59]} 2. Nf3 {[%clk 0:03:00]}  e6 {[%clk 0:03:00]} 3. b3 {[%clk 0:02:59]}  Nc6 {[%clk 0:02:59]} 4. Bb2 {[%clk 0:02:59]}  a6 {[%clk 0:02:59]} 5. g3 {[%clk 0:02:58]}  d5 {[%clk 0:02:57]} 6. exd5 {[%clk 0:02:55]}  exd5 {[%clk 0:02:57]} 7. Qe2+ {[%clk 0:02:52]}  Qe7 {[%clk 0:02:54]} 8. Qxe7+ {[%clk 0:02:45]}  Ngxe7 {[%clk 0:02:55]} 9. Bg2 {[%clk 0:02:41]}  Be6 {[%clk 0:02:49]} 10. d4 {[%clk 0:02:30]}  cxd4 {[%clk 0:02:45]} 11. Nxd4 {[%clk 0:02:31]}  Nxd4 {[%clk 0:02:44]} 12. Bxd4 {[%clk 0:02:31]}  Nf5 {[%clk 0:02:10]} 13. Bb2 {[%clk 0:02:31]}  Rc8 {[%clk 0:02:02]} 14. c3 {[%clk 0:02:26]}  Bc5 {[%clk 0:01:55]} 15. O-O {[%clk 0:02:25]}  O-O {[%clk 0:01:55]} 16. Na3 {[%clk 0:02:22]}  b5 {[%clk 0:01:52]} 17. Nc2 {[%clk 0:02:21]}  Rfd8 {[%clk 0:01:52]} 18. Rad1 {[%clk 0:02:12]}  h5 {[%clk 0:01:38]} 19. Rfe1 {[%clk 0:02:02]}  Rd7 {[%clk 0:01:22]} 20. Rd2 {[%clk 0:01:58]}  Rcd8 {[%clk 0:01:18]} 21. Red1 {[%clk 0:01:45]}  h4 {[%clk 0:01:03]} 22. Kf1 {[%clk 0:01:39]}  hxg3 {[%clk 0:01:03]} 23. hxg3 {[%clk 0:01:40]}  Kf8 {[%clk 0:01:00]} 24. Bf3 {[%clk 0:01:31]}  Nd6 {[%clk 0:00:51]} 25. Nd4 {[%clk 0:01:20]}  Bh3+ {[%clk 0:00:50]} 26. Bg2 {[%clk 0:01:17]}  Bxg2+ {[%clk 0:00:49]} 27. Kxg2 {[%clk 0:01:18]}  Ne4 {[%clk 0:00:49]} 28. Re2 {[%clk 0:01:08]}  Rc7 {[%clk 0:00:49]} 29. Nf5 {[%clk 0:01:00]}  g6 {[%clk 0:00:47]} 30. Rxe4 {[%clk 0:01:00]}  gxf5 {[%clk 0:00:45]} 31. Re5 {[%clk 0:00:58]}  f4 {[%clk 0:00:42]} 32. Rdxd5 {[%clk 0:00:55]}  Rxd5 {[%clk 0:00:33]} 33. Rxd5 {[%clk 0:00:56]}  Ke7 {[%clk 0:00:19]} 34. Rxc5 {[%clk 0:00:52]}  Rxc5 {[%clk 0:00:20]} 35. Ba3 {[%clk 0:00:52]}  Kd6 {[%clk 0:00:21]} 36. g4 {[%clk 0:00:47]}  a5 {[%clk 0:00:19]} 37. Bxc5+ {[%clk 0:00:47]}  Kxc5 {[%clk 0:00:20]} 38. Kf3 {[%clk 0:00:48]}  b4 {[%clk 0:00:20]} 39. c4 {[%clk 0:00:48]}  Kd4 {[%clk 0:00:18]} 40. Kxf4 {[%clk 0:00:46]}  a4 {[%clk 0:00:18]} 41. g5 {[%clk 0:00:35]}  a3 {[%clk 0:00:07]} 42. c5 {[%clk 0:00:36]}  Kxc5 {[%clk 0:00:07]} 43. Ke5 {[%clk 0:00:36]}  Kc6 {[%clk 0:00:06]} 44. f4 {[%clk 0:00:36]}  Kc5 {[%clk 0:00:07]} 45. f5 {[%clk 0:00:37]}  Kc6 {[%clk 0:00:07]} 46. g6 {[%clk 0:00:37]}  Kc5 {[%clk 0:00:08]} 47. gxf7 {[%clk 0:00:37]}  Kb5 {[%clk 0:00:09]} 48. f8=Q {[%clk 0:00:37]}  Kb6 {[%clk 0:00:10]} 49. Qxb4+ {[%clk 0:00:37]}  Ka6 {[%clk 0:00:10]} 50. Qxa3+ {[%clk 0:00:38]}  Kb6 {[%clk 0:00:11]} 51. Qb2 {[%clk 0:00:38]}  Kb5 {[%clk 0:00:12]} 52. a3 {[%clk 0:00:39]}  Ka5 {[%clk 0:00:13]} 53. f6 {[%clk 0:00:39]}  Ka6 {[%clk 0:00:14]} 1-0